fUST/lending_fUST_20250531
["ID","MTS","AMOUNT","RATE_DAILY","PERIOD"]
[363303927,1748665843966,-430.0,0.00019502,2]
[363303930,1748665843975,-430.0,0.00019502,2]
[363303932,1748665843985,-430.0,0.00019502,2]
[363303950,1748665844143,-430.0,0.00019502,2]
[363303952,1748665844152,-430.0,0.00019502,2]
[363303954,1748665844163,-430.0,0.00019502,2]
[363303956,1748665844179,-430.0,0.00019502,2]
[363303958,1748665844189,-430.0,0.00019502,2]
[363303960,1748665844201,-430.0,0.00019502,2]
[363303962,1748665844210,-430.0,0.00019502,2]
[363303964,1748665844219,-430.0,0.00019503,2]
[363303967,1748665844229,-496.58,0.00019503,2]
[363303968,1748665844238,-430.0,0.00019503,2]
[363303971,1748665844248,-430.0,0.00019503,2]
[363303973,1748665844258,-430.0,0.00019503,2]
[363303975,1748665844267,-698.27,0.00019503,2]
[363303977,1748665844278,-465.83,0.00019503,2]
[363303978,1748665844288,-430.0,0.00019503,2]
[363303981,1748665844297,-430.0,0.00019504,2]
[363303982,1748665844307,-430.0,0.00019504,2]
[363303984,1748665844316,-430.0,0.00019504,2]
[363303986,1748665844325,-430.0,0.00019504,2]
[363303988,1748665844334,-483.92,0.00019504,2]
[363303990,1748665844343,-1449.54,0.00019504,2]
[363303992,1748665844352,-435.80688009,0.00019504,2]
[363303994,1748665844362,-430.0,0.00019504,2]
[363303996,1748665844371,-521.11051851,0.00019506,2]
[363303998,1748665844380,-430.0,0.00019506,2]
[363304000,1748665844390,-430.0,0.00019506,2]
[363304002,1748665844399,-164.556067,0.00019508,2]
[363304004,1748665844408,-164.556067,0.00019508,2]
[363304006,1748665844417,-701.376749,0.00019508,2]
[363304008,1748665844427,-701.376749,0.00019508,2]
[363304010,1748665844436,-346.129461,0.00019508,2]
[363304012,1748665844446,-346.129461,0.00019508,2]
[363304014,1748665844455,-3000.0,0.0001974,2]
[363304016,1748665844464,-430.0,0.00019775,2]
[363304018,1748665844474,-1182.88,0.00019776,2]
[363304020,1748665844483,-430.0,0.00019776,2]
[363304023,1748665844492,-1449.66,0.00019776,2]
[363304025,1748665844501,-430.0,0.00019776,2]
[363304027,1748665844511,-511.31,0.00019776,2]
[363304029,1748665844521,-1794.05,0.00019776,2]
[363304031,1748665844530,-430.0,0.00019776,2]
[363304033,1748665844539,-753.8,0.00019776,2]
[363304035,1748665844549,-620.63,0.00019776,2]
[363304037,1748665844559,-430.0,0.00019776,2]
[363304038,1748665844569,-421.91049449,0.00019776,2]
[363304041,1748665844578,-430.0,0.00019776,2]
[363304043,1748665844587,-430.0,0.00019776,2]
[363304044,1748665844596,-375.56312031,0.00019776,2]
[363304047,1748665844606,-430.0,0.00019776,2]
[363304048,1748665844616,-430.0,0.00019776,2]
[363304050,1748665844625,-151.0,0.00019776,2]
[363304052,1748665844634,-430.0,0.00019776,2]
[363304054,1748665844643,-430.0,0.00019776,2]
[363304056,1748665844652,-430.0,0.00019776,2]
[363304059,1748665844662,-496.58,0.00019777,2]
[363304060,1748665844671,-430.0,0.00019777,2]
[363304062,1748665844680,-698.27,0.00019777,2]
[363304065,1748665844689,-465.83,0.00019777,2]
[363304066,1748665844699,-430.0,0.00019777,2]
[363304069,1748665844708,-430.0,0.00019778,2]
[363304070,1748665844717,-430.0,0.00019778,2]
[363304072,1748665844726,-230.07704568,0.00019778,2]
[363304074,1748665844735,-430.0,0.00019778,2]
[363304077,1748665844744,-483.92,0.00019778,2]
[363304078,1748665844754,-1449.54,0.00019778,2]
[363304080,1748665844765,-430.0,0.00019778,2]
[363304082,1748665844775,-420.0,0.00019779,2]
[363304084,1748665844783,-430.0,0.0001978,2]
[363304086,1748665844793,-430.0,0.0001978,2]
[363304089,1748665844802,-420.0,0.0001978,2]
[363304090,1748665844811,-1777.29205759,0.000199,2]
[363304093,1748665844821,-559.429,0.00019946,2]
[363304095,1748665844834,-204.93108793,0.00019968,2]
[363304096,1748665844847,-4189.0,0.0002,2]
[363304098,1748665844861,-300.0,0.0002,2]
[363304100,1748665844871,-250.0,0.0002,30]
[363304102,1748665844882,-502.08399402,0.0002,2]
[363304104,1748665844891,-6298.82403136,0.0002,2]
[363304106,1748665844900,-312.9626019,0.0002,7]
[363304108,1748665844909,-1182.88,0.0002005,2]
[363304110,1748665844918,-1449.66,0.0002005,2]
[363304112,1748665844927,-430.0,0.0002005,2]
[363304114,1748665844936,-511.31,0.0002005,2]
[363304116,1748665844946,-1794.05,0.0002005,2]
[363304118,1748665844955,-430.0,0.0002005,2]
[363304120,1748665844965,-753.8,0.0002005,2]
[363304122,1748665844975,-620.63,0.0002005,2]
[363304124,1748665844984,-430.0,0.0002005,2]
[363304126,1748665844993,-430.0,0.0002005,2]
[363304128,1748665845002,-430.0,0.0002005,2]
[363304130,1748665845015,-430.0,0.0002005,2]
[363304132,1748665845025,-173.3848675,0.0002005,2]
[363304134,1748665845034,-430.0,0.0002005,2]
[363304136,1748665845043,-496.58,0.00020051,2]
[363304138,1748665845052,-430.0,0.00020051,2]
[363304140,1748665845061,-698.27,0.00020051,2]
[363304142,1748665845070,-465.83,0.00020051,2]
[363304143,1748665845079,-430.0,0.00020051,2]
[363304145,1748665845089,-430.0,0.00020052,2]
[363304147,1748665845099,-430.0,0.00020052,2]
[363304150,1748665845108,-430.0,0.00020052,2]
[363304151,1748665845118,-483.92,0.00020052,2]
[363304153,1748665845127,-1449.54,0.00020052,2]
[363304155,1748665845136,-430.0,0.00020052,2]
[363304157,1748665845146,-430.0,0.00020054,2]
[363304159,1748665845155,-459.92054578,0.00020054,2]
[363304161,1748665845165,-1777.29205747,0.00020072,2]
[363304163,1748665845175,-1777.29205747,0.00020245,2]
[363304165,1748665845184,-4000.0,0.00020288,2]
[363304167,1748665845194,-1182.88,0.00020324,2]
[363304169,1748665845208,-1449.66,0.00020324,2]
[363304171,1748665845217,-511.31,0.00020324,2]
[363304173,1748665845226,-1794.05,0.00020324,2]
[363304175,1748665845235,-430.0,0.00020324,2]
[363304177,1748665845245,-753.8,0.00020324,2]
[363304179,1748665845258,-620.63,0.00020324,2]
[363304181,1748665845270,-430.0,0.00020324,2]
[363304183,1748665845279,-430.0,0.00020324,2]
[363304185,1748665845290,-337.98,0.00020324,2]
[363304187,1748665845301,-430.0,0.00020324,2]
[363304189,1748665845311,-430.0,0.00020324,2]
[363304191,1748665845320,-496.58,0.00020325,2]
[363304193,1748665845330,-430.0,0.00020325,2]
[363304195,1748665845339,-154.788343,0.00020325,2]
[363304197,1748665845349,-698.27,0.00020325,2]
[363304199,1748665845358,-465.83,0.00020325,2]
[363304201,1748665845368,-430.0,0.00020325,2]
[363304203,1748665845377,-430.0,0.00020326,2]
[363304205,1748665845387,-430.0,0.00020326,2]
[363304207,1748665845396,-483.92,0.00020326,2]
[363304209,1748665845406,-1449.54,0.00020326,2]
[363304211,1748665845416,-430.0,0.00020326,2]
[363304213,1748665845425,-166.42314775,0.00020328,2]
[363304215,1748665845434,-700.0,0.00020356,2]
[363304217,1748665845444,-601.1127309,0.00020376,2]
[363304219,1748665845453,-1777.29205747,0.00020417,3]
[363304221,1748665845462,-151.624286,0.00020442,2]
[363304223,1748665845471,-329.786434,0.00020442,2]
[363304225,1748665845480,-329.786434,0.00020442,2]
[363304227,1748665845489,-151.0,0.00020442,2]
[363304229,1748665845499,-207.4,0.00020442,2]
[363304231,1748665845513,-151.47158686,0.00020442,2]
[363304233,1748665845523,-300.0,0.00020442,2]
[363304235,1748665845533,-300.0,0.00020442,2]
[363304237,1748665845542,-300.0,0.00020442,2]
[363304239,1748665845551,-300.0,0.00020442,2]
[363304241,1748665845560,-300.0,0.00020442,2]
[363304242,1748665845570,-5000.0,0.00020442,2]
[363304244,1748665845579,-300.0,0.00020442,2]
[363304246,1748665845589,-332.79567003,0.00020442,2]
[363304248,1748665845598,-4230.45712251,0.00020442,2]
[363304250,1748665845606,-1777.29205747,0.0002059,3]
[363304252,1748665845615,-1182.88,0.00020598,2]
[363304254,1748665845625,-1449.66,0.00020598,2]
[363304256,1748665845634,-511.31,0.00020598,2]
[363304258,1748665845643,-1794.05,0.00020598,2]
[363304260,1748665845653,-753.8,0.00020598,2]
[363304262,1748665845663,-620.63,0.00020598,2]
[363304264,1748665845672,-430.0,0.00020598,2]
[363304266,1748665845681,-430.0,0.00020598,2]
[363304268,1748665845690,-430.0,0.00020598,2]
[363304270,1748665845700,-496.58,0.00020599,2]
[363304272,1748665845709,-430.0,0.00020599,2]
[363304274,1748665845718,-698.27,0.00020599,2]
[363304276,1748665845727,-465.83,0.00020599,2]
[363304278,1748665845737,-430.0,0.00020599,2]
[363304280,1748665845747,-430.0,0.000206,2]
[363304282,1748665845759,-430.0,0.000206,2]
[363304284,1748665845768,-483.92,0.000206,2]
[363304285,1748665845777,-1449.54,0.000206,2]
[363304287,1748665845787,-430.0,0.000206,2]
[363304289,1748665845796,-601.1127309,0.00020651,2]
[363304291,1748665845806,-164.556067,0.00020705,2]
[363304293,1748665845815,-164.556067,0.00020705,2]
[363304295,1748665845824,-701.376749,0.00020705,2]
[363304297,1748665845833,-701.376749,0.00020705,2]
[363304299,1748665845842,-346.129461,0.00020705,2]
[363304301,1748665845852,-346.129461,0.00020705,2]
[363304303,1748665845861,-2200.0,0.00020728,2]
[363304305,1748665845870,-1777.29205747,0.00020762,3]
[363304307,1748665845879,-2228.0,0.00020798,2]
[363304309,1748665845889,-708.0,0.00020798,2]
[363304311,1748665845897,-405.0,0.00020798,2]
[363304312,1748665845908,-250.0,0.00020823,2]
[363304314,1748665845917,-5000.0,0.00020836,2]
[363304316,1748665845927,-151.0,0.00020872,2]
[363304318,1748665845936,-1182.88,0.00020872,2]
[363304320,1748665845945,-1449.66,0.00020872,2]
[363304322,1748665845954,-511.31,0.00020872,2]
[363304324,1748665845963,-1794.05,0.00020872,2]
[363304326,1748665845973,-753.8,0.00020872,2]
[363304328,1748665845982,-620.63,0.00020872,2]
[363304330,1748665845992,-430.0,0.00020872,2]
[363304332,1748665846001,-430.0,0.00020872,2]
[363304334,1748665846014,-430.0,0.00020872,2]
[363304336,1748665846023,-496.58,0.00020873,2]
[363304338,1748665846032,-430.0,0.00020873,2]
[363304340,1748665846042,-698.27,0.00020873,2]
[363304342,1748665846050,-465.83,0.00020873,2]
[363304345,1748665846059,-430.0,0.00020873,2]
[363304347,1748665846068,-430.0,0.00020874,2]
[363304348,1748665846077,-430.0,0.00020874,2]
[363304350,1748665846086,-483.92,0.00020874,2]
[363304352,1748665846096,-1449.54,0.00020874,2]
[363304354,1748665846106,-430.0,0.00020874,2]
[363304356,1748665846115,-157.5499743,0.00020877,2]
[363304358,1748665846125,-151.0,0.000209,3]
[363304360,1748665846134,-601.1127309,0.00020931,2]
[363304362,1748665846144,-204.93108793,0.00020934,2]
[363304364,1748665846154,-1777.29205747,0.00020934,4]
[363304366,1748665846163,-500.0,0.00020951,2]
[363304368,1748665846172,-165.5931255,0.00020951,2]
[363304370,1748665846181,-500.0,0.00020951,2]
[363304372,1748665846191,-628.9302745,0.00020978,2]
[363304374,1748665846204,-500.0,0.00020978,2]
[363304376,1748665846220,-5000.0,0.0002099,2]
[363304378,1748665846229,-500.0,0.00021006,2]
[363304379,1748665846239,-500.0,0.00021033,2]
[363304381,1748665846250,-500.0,0.00021061,2]
[363304383,1748665846262,-153.0,0.00021068,2]
[363304385,1748665846272,-500.0,0.00021088,2]
[363304387,1748665846282,-1777.29205747,0.00021107,4]
[363304389,1748665846291,-500.0,0.00021115,2]
[363304391,1748665846301,-500.0,0.00021143,2]
[363304393,1748665846310,-96885.50337,0.00021145,2]
[363304395,1748665846320,-1182.88,0.00021146,2]
[363304397,1748665846329,-1449.66,0.00021146,2]
[363304399,1748665846339,-511.31,0.00021146,2]
[363304401,1748665846348,-1794.05,0.00021146,2]
[363304403,1748665846357,-753.8,0.00021146,2]
[363304405,1748665846367,-620.63,0.00021146,2]
[363304407,1748665846376,-430.0,0.00021146,2]
[363304408,1748665846385,-430.0,0.00021146,2]
[363304410,1748665846395,-430.0,0.00021146,2]
[363304412,1748665846404,-152.087997,0.00021146,2]
[363304414,1748665846415,-496.58,0.00021147,2]
[363304416,1748665846424,-430.0,0.00021147,2]
[363304418,1748665846434,-698.27,0.00021147,2]
[363304420,1748665846444,-465.83,0.00021147,2]
[363304422,1748665846453,-430.0,0.00021147,2]
[363304424,1748665846463,-570.6,0.00021148,2]
[363304426,1748665846473,-430.0,0.00021148,2]
[363304428,1748665846483,-483.92,0.00021148,2]
[363304430,1748665846492,-1449.54,0.00021148,2]
[363304432,1748665846501,-430.0,0.00021148,2]
[363304434,1748665846512,-1317.47754355,0.00021149,2]
[363304436,1748665846521,-157.5499743,0.00021151,2]
[363304438,1748665846530,-157.5499743,0.00021151,2]
[363304439,1748665846539,-385.104233,0.0002117,2]
[363304441,1748665846548,-385.104233,0.0002117,2]
[363304443,1748665846558,-151.0,0.0002117,2]
[363304445,1748665846567,-372.249915,0.0002117,2]
[363304447,1748665846576,-372.249915,0.0002117,2]
[363304449,1748665846585,-500.0,0.0002117,2]
[363304451,1748665846595,-306.0,0.00021178,2]
[363304453,1748665846604,-162.6182772,0.00021178,2]
[363304455,1748665846613,-176.4540852,0.00021178,2]
[363304457,1748665846622,-467.9952537,0.00021178,2]
[363304459,1748665846631,-500.0,0.00021198,2]
[363304461,1748665846640,-151.0,0.000212,3]
[363304463,1748665846650,-151.0,0.000212,4]
[363304465,1748665846659,-601.1127309,0.0002122,2]
[363304467,1748665846669,-500.0,0.00021225,2]
[363304468,1748665846678,-275.43614523,0.00021252,2]
[363304470,1748665846687,-219.60125726,0.00021263,30]
[363304472,1748665846696,-1777.29205747,0.00021279,5]
[363304487,1748665846835,-575.30694928,0.00021309,2]
[363304489,1748665846849,-153.841363,0.00021364,4]
[363304491,1748665846859,-153.841363,0.00021364,6]
[363304493,1748665846869,-153.841363,0.00021366,2]
[363304495,1748665846878,-219.60125726,0.00021377,30]
[363304497,1748665846888,-222.61924346,0.00021384,2]
[363304499,1748665846898,-1182.88,0.0002142,2]
[363304501,1748665846907,-1449.66,0.0002142,2]
[363304503,1748665846917,-511.31,0.0002142,2]
[363304505,1748665846926,-1794.05,0.0002142,2]
[363304507,1748665846936,-753.8,0.0002142,2]
[363304509,1748665846946,-620.63,0.0002142,2]
[363304511,1748665846956,-430.0,0.0002142,2]
[363304513,1748665846965,-475.15819155,0.0002142,2]
[363304515,1748665846975,-430.0,0.0002142,2]
[363304517,1748665846985,-496.58,0.00021421,2]
[363304519,1748665846994,-430.0,0.00021421,2]
[363304521,1748665847003,-698.27,0.00021421,2]
[363304523,1748665847014,-465.83,0.00021421,2]
[363304525,1748665847023,-430.0,0.00021421,2]
[363304526,1748665847033,-430.0,0.00021422,2]
[363304527,1748665847042,-483.92,0.00021422,2]
[363304528,1748665847052,-1449.54,0.00021422,2]
[363304529,1748665847061,-430.0,0.00021422,2]
[363304530,1748665847070,-1777.29205747,0.00021452,5]
[363304531,1748665847079,-700.0,0.00021452,2]
[363304532,1748665847088,-219.60125726,0.0002149,30]
[363304533,1748665847098,-500.0,0.000215,2]
[363304534,1748665847108,-500.0,0.000215,2]
[363304535,1748665847118,-393.73142851,0.000215,2]
[363304536,1748665847127,-500.0,0.000215,2]
[363304537,1748665847137,-500.0,0.000215,2]
[363304538,1748665847147,-500.0,0.000215,2]
[363304539,1748665847156,-500.0,0.000215,2]
[363304540,1748665847166,-601.1127309,0.00021523,2]
[363304541,1748665847176,-153.841363,0.00021528,3]
[363304542,1748665847186,-1820.805116,0.0002156,3]
[363304543,1748665847196,-452.0,0.00021578,2]
[363304544,1748665847210,-587.0,0.0002158,2]
[363304545,1748665847220,-701.376749,0.0002159,2]
[363304546,1748665847230,-701.376749,0.0002159,2]
[363304547,1748665847241,-346.129461,0.0002159,2]
[363304548,1748665847250,-346.129461,0.0002159,2]
[363304549,1748665847261,-151.0,0.000216,4]
[363304550,1748665847271,-151.0,0.000216,4]
[363304551,1748665847282,-219.60125726,0.00021604,30]
[363304553,1748665847291,-153.0,0.00021616,2]
[363304554,1748665847300,-153.0,0.00021616,2]
[363304556,1748665847311,-1777.29205747,0.00021624,5]
[363304558,1748665847320,-1182.88,0.00021694,2]
[363304560,1748665847330,-1449.66,0.00021694,2]
[363304562,1748665847339,-511.31,0.00021694,2]
[363304564,1748665847349,-1794.05,0.00021694,2]
[363304566,1748665847359,-753.8,0.00021694,2]
[363304568,1748665847368,-620.63,0.00021694,2]
[363304570,1748665847377,-430.0,0.00021694,2]
[363304572,1748665847387,-496.58,0.00021695,2]
[363304574,1748665847395,-430.0,0.00021695,2]
[363304576,1748665847405,-698.27,0.00021695,2]
[363304578,1748665847414,-465.83,0.00021695,2]
[363304580,1748665847424,-430.0,0.00021696,2]
[363304582,1748665847434,-483.92,0.00021696,2]
[363304584,1748665847443,-1449.54,0.00021696,2]
[363304585,1748665847453,-430.0,0.00021696,2]
[363304587,1748665847462,-164.556067,0.00021697,2]
[363304589,1748665847471,-164.556067,0.00021697,2]
[363304591,1748665847481,-151.0,0.00021697,2]
[363304593,1748665847490,-151.0,0.00021697,2]
[363304596,1748665847502,-5000.0,0.00021697,2]
[363304598,1748665847514,-273.0,0.000217,2]
[363304600,1748665847522,-219.60125726,0.00021718,30]
[363304602,1748665847532,-601.1127309,0.00021781,2]
[363304604,1748665847541,-1777.29205747,0.00021797,6]
[363304606,1748665847551,-215.0738,0.00021811,2]
[363304608,1748665847560,-219.60125726,0.00021832,30]
[363304610,1748665847569,-204.93108793,0.000219,2]
[363304612,1748665847579,-5246.20470546,0.000219,2]
[363304614,1748665847588,-637.0,0.000219,2]
[363304615,1748665847597,-200.0,0.00021917,2]
[363304617,1748665847607,-3742.59133857,0.00021917,2]
[363304619,1748665847616,-519.81,0.00021917,2]
[363304622,1748665847626,-12500.0,0.00021917,2]
[363304623,1748665847635,-219.60125726,0.00021946,30]
[363304625,1748665847645,-1000.0,0.0002196,5]
[363304628,1748665847655,-1182.88,0.00021968,2]
[363304629,1748665847666,-1449.66,0.00021968,2]
[363304632,1748665847675,-511.31,0.00021968,2]
[363304634,1748665847685,-1794.05,0.00021968,2]
[363304636,1748665847700,-753.8,0.00021968,2]
[363304638,1748665847721,-620.63,0.00021968,2]
[363304640,1748665847736,-430.0,0.00021968,2]
[363304641,1748665847747,-329.786434,0.00021968,7]
[363304644,1748665847758,-329.786434,0.00021968,7]
[363304645,1748665847768,-1777.29205747,0.00021969,6]
[363304648,1748665847778,-496.58,0.00021969,2]
[363304650,1748665847788,-579.56,0.00021969,2]
[363304651,1748665847798,-698.27,0.00021969,2]
[363304654,1748665847808,-465.83,0.00021969,2]
[363304656,1748665847818,-430.0,0.0002197,2]
[363304658,1748665847827,-483.92,0.0002197,2]
[363304659,1748665847837,-1449.54,0.0002197,2]
[363304661,1748665847847,-430.0,0.0002197,2]
[363304663,1748665847857,-500.0,0.00021973,2]
[363304665,1748665847867,-500.37680948,0.00021973,2]
[363304667,1748665847876,-500.0,0.00021973,2]
[363304670,1748665847886,-500.0,0.00021973,2]
[363304672,1748665847899,-500.0,0.00021973,2]
[363304674,1748665847910,-500.0,0.00021973,2]
[363304676,1748665847919,-500.0,0.00021973,2]
[363304678,1748665847929,-306.8507996,0.00021973,2]
[363304680,1748665847938,-500.0,0.00021973,2]
[363304682,1748665847948,-500.0,0.00021973,2]
[363304684,1748665847958,-500.0,0.00021973,2]
[363304686,1748665847967,-500.0,0.00021973,2]
[363304688,1748665847977,-500.0,0.00021973,2]
[363304690,1748665847987,-400.49783772,0.00021973,2]
[363304692,1748665847996,-500.0,0.00021973,2]
[363304694,1748665848006,-500.0,0.00021973,2]
[363304696,1748665848016,-341.58993269,0.00021973,2]
[363304698,1748665848026,-500.0,0.00021973,2]
[363304700,1748665848036,-450.3400897,0.00021973,2]
[363304702,1748665848046,-160.18894433,0.00021973,2]
[363304704,1748665848055,-503.32993112,0.00021973,2]
[363304706,1748665848065,-500.0,0.00021973,2]
[363304708,1748665848075,-399.17394173,0.00021973,2]
[363304710,1748665848085,-500.93515612,0.00021973,2]
[363304712,1748665848094,-500.0,0.00021973,2]
[363304714,1748665848104,-500.0,0.00021973,2]
[363304716,1748665848114,-500.0,0.00021973,2]
[363304718,1748665848124,-500.0,0.00021973,2]
[363304720,1748665848134,-500.0,0.00021973,2]
[363304722,1748665848144,-215.99549423,0.00021973,2]
[363304724,1748665848155,-500.0,0.00021973,2]
[363304726,1748665848165,-500.0,0.00021973,2]
[363304728,1748665848175,-500.0,0.00021973,2]
[363304730,1748665848184,-500.0,0.00021973,2]
[363304732,1748665848195,-502.84122441,0.00021973,2]
[363304734,1748665848209,-600.0,0.00021973,2]
[363304736,1748665848219,-501.60266877,0.00021973,2]
[363304738,1748665848230,-500.0,0.00021973,2]
[363304740,1748665848239,-500.0,0.00021973,2]
[363304742,1748665848249,-500.0,0.00021973,2]
[363304744,1748665848259,-554.54632245,0.00021973,2]
[363304746,1748665848269,-505.01652487,0.00021973,2]
[363304748,1748665848280,-538.80581164,0.00021973,2]
[363304750,1748665848290,-151.0,0.00021973,7]
[363304752,1748665848300,-2679.3,0.00021979,10]
[363304754,1748665848310,-2232.75,0.00021979,10]
[363304756,1748665848320,-1000.0,0.0002198,5]
[363304758,1748665848329,-500.0,0.0002198,8]
[363304760,1748665848341,-160.0,0.00021999,2]
[363304762,1748665848350,-28863.15065778,0.00022,3]
[363304763,1748665848359,-147056.75840229,0.00022,2]
[363304765,1748665848369,-41492.56334192,0.00022,2]
[363304768,1748665848379,-148132.81698434,0.00022,2]
[363304776,1748665848447,-103540.00000003,0.00022,2]
[363304783,1748665848510,-430.0,0.00018133,2]
[363304785,1748665848519,-430.0,0.00018407,2]
[363304787,1748665848530,-962.0,0.00020762,2]
[363304789,1748665848540,-673.56342047,0.00022,2]
[363307102,1748666281483,160.746744,0.00013699,2]
[363307104,1748666750132,-197.45323214,0.0001649,2]
[363307105,1748666750155,-299.51343445,0.00016998,2]
[363307106,1748666758266,10000.0,0.0002,120]
[363307107,1748666776910,4302.0,0.0002,120]
[363307108,1748666851286,-300.0,0.00016998,2]
[363307109,1748666851309,-300.0,0.00016998,2]
[363307110,1748666851332,-430.0,0.00016999,2]
[363307111,1748666851354,-168.72,0.00016999,2]
[363307112,1748666851379,-1536.56,0.00016999,2]
[363307113,1748666851401,-430.0,0.00016999,2]
[363307114,1748666851424,-430.0,0.00016999,2]
[363307115,1748666851447,-430.0,0.00016999,2]
[363307116,1748666851470,-615.57,0.00016999,2]
[363307117,1748666851493,-531.82,0.00016999,2]
[363307118,1748666851516,-430.0,0.00016999,2]
[363307119,1748666851538,-430.0,0.00016999,2]
[363307120,1748666851563,-430.0,0.00016999,2]
[363307121,1748666851585,-430.0,0.00016999,2]
[363307122,1748666851607,-430.0,0.00016999,2]
[363307123,1748666851629,-430.0,0.00016999,2]
[363307124,1748666851655,-400.6395,0.00016999,2]
[363307125,1748666851677,-430.0,0.00016999,2]
[363307126,1748666851699,-430.0,0.00016999,2]
[363307127,1748666851736,-430.0,0.00016999,2]
[363307128,1748666851765,-430.0,0.00016999,2]
[363307129,1748666851787,-401.53332796,0.00016999,2]
[363307130,1748666851809,-430.0,0.00016999,2]
[363307131,1748666851831,-430.0,0.00016999,2]
[363307132,1748666851854,-430.0,0.00016999,2]
[363307133,1748666851878,-430.0,0.00016999,2]
[363307134,1748666851901,-1105.22,0.00016999,2]
[363307135,1748666851926,-430.0,0.00016999,2]
[363307136,1748666851949,-430.0,0.00016999,2]
[363307137,1748666851971,-430.0,0.00016999,2]
[363307138,1748666851998,-430.0,0.00016999,2]
[363307139,1748666852021,-1015.17556934,0.00016999,2]
[363307141,1748666931499,899.91,0.000141,2]
[363307142,1748666943982,899.0,0.000141,2]
[363307143,1748666949121,-300.0,0.00016998,2]
[363307144,1748666949143,-513.85908739,0.00016998,2]
[363307145,1748666949164,-508.50852807,0.00016999,2]
[363307146,1748666954098,-9396.54606314,0.00016999,2]
[363307147,1748666954122,-321.88443066,0.00016999,2]
[363307148,1748666954144,-430.0,0.00016999,2]
[363307149,1748666954166,-477.04,0.00016999,2]
[363307150,1748666954187,-430.0,0.00016999,2]
[363307151,1748666954209,-430.0,0.00016999,2]
[363307152,1748666954232,-163.23129879,0.00016999,2]
[363307153,1748666954255,-1547.29,0.00016999,2]
[363307154,1748666954277,-430.0,0.00016999,2]
[363307155,1748666954298,-214.15,0.00016999,2]
[363307156,1748666954320,-621.33,0.00016999,2]
[363307157,1748666954343,-535.52,0.00016999,2]
[363307158,1748666954364,-430.0,0.00016999,2]
[363307159,1748666954385,-430.0,0.00016999,2]
[363307160,1748666954408,-430.0,0.00016999,2]
[363307161,1748666954429,-430.0,0.00016999,2]
[363307162,1748666954453,-470.36,0.00016999,2]
[363307163,1748666954476,-430.0,0.00016999,2]
[363307164,1748666954506,-438.19031292,0.00016999,2]
[363307165,1748666954532,-408.01880777,0.00016999,2]
[363307166,1748666954555,-334.96244374,0.00016999,2]
[363307167,1748666954580,-430.0,0.00016999,2]
[363307168,1748666954606,-517.25508792,0.00016999,2]
[363307169,1748666954628,-430.0,0.00016999,2]
[363307170,1748666954651,-430.0,0.00016999,2]
[363307171,1748666954675,-430.0,0.00016999,2]
[363307172,1748666954697,-430.0,0.00016999,2]
[363307173,1748666954720,-430.0,0.00016999,2]
[363307174,1748666954741,-460.55538401,0.00016999,2]